fUSD/lending_fUSD_20240216
["ID","MTS","AMOUNT","RATE_DAILY","PERIOD"]
[314216826,1708089038626,-606.043301,0.0003452,2]
[314216827,1708089038636,-401.627259,0.0003452,2]
[314216828,1708089038645,-18753.502462,0.0003452,2]
[314216829,1708089038655,-2274.071357,0.0003452,2]
[314216830,1708089038664,-1305.68,0.00034521,2]
[314216831,1708089038673,-1679.91687904,0.00034559,2]
[314216832,1708089038682,-43354.8665066,0.00034562,7]
[314216833,1708089038691,-387.96760157,0.00034642,2]
[314216834,1708089038701,-7225.81108444,0.0003477,7]
[314216835,1708089038710,-7225.81108444,0.00034774,7]
[314216836,1708089038719,-21677.4332533,0.00034784,7]
[314216837,1708089038728,-44686.35704778,0.0003479,2]
[314216838,1708089038737,-44686.35704773,0.0003479,2]
[314216839,1708089038747,-1388.001827,0.00034794,2]
[314216840,1708089038766,-750.239805,0.00034794,2]
[314216841,1708089038777,-1842.040283,0.00034794,2]
[314216842,1708089038787,-909.064952,0.00034794,2]
[314216843,1708089038797,-602.440889,0.00034794,2]
[314216844,1708089038807,-28130.253693,0.00034794,2]
[314216845,1708089038817,-3411.107035,0.00034794,2]
[314216846,1708089038826,-7567.64456385,0.00034799,2]
[314216847,1708089038835,-7567.64456378,0.00034799,2]
[314216848,1708089038845,-973.181519,0.000348,2]
[314216849,1708089038854,-151.52249804,0.00034831,2]
[314216850,1708089038864,-7225.81108444,0.0003489,7]
[314216851,1708089038874,-3617.81920769,0.000349,2]
[314216852,1708089038884,-3617.81920757,0.000349,2]
[314216853,1708089038893,-3617.81920757,0.000349,2]
[314216854,1708089038902,-3617.81920757,0.000349,2]
[314216855,1708089038912,-14451.6221689,0.00034911,7]
[314216856,1708089038922,-387.96760157,0.00034921,2]
[314216857,1708089038931,-1850.669103,0.00034931,2]
[314216858,1708089038941,-1000.31974,0.00034931,2]
[314216859,1708089038950,-2456.053711,0.00034931,2]
[314216860,1708089038959,-1212.086603,0.00034931,2]
[314216861,1708089038969,-803.254519,0.00034931,2]
[314216862,1708089038978,-37507.004924,0.00034931,2]
[314216863,1708089038988,-4548.142714,0.00034931,2]
[314216864,1708089038997,-158.05,0.00034946,2]
[314216865,1708089039007,-1297.575359,0.00035,2]
[314216866,1708089039016,-4452.99470377,0.00035,30]
[314216867,1708089039025,-1000.0,0.00035,3]
[314216868,1708089039035,-13289.52663128,0.00035,15]
[314216869,1708089039046,-167.07,0.00035002,2]
[314216870,1708089039055,-231.83,0.00035063,2]
[314216871,1708089039065,-2313.336379,0.00035068,2]
[314216872,1708089039074,-1250.399675,0.00035068,2]
[314216873,1708089039083,-3070.067139,0.00035068,2]
[314216874,1708089039093,-1515.108253,0.00035068,2]
[314216875,1708089039102,-1004.068149,0.00035068,2]
[314216876,1708089039112,-46883.756155,0.00035068,2]
[314216877,1708089039124,-5685.178392,0.00035068,2]
[314216878,1708089039135,-33539.94304704,0.0003509,2]
[314216879,1708089039145,-157.33,0.00035128,2]
[314216880,1708089039155,-945.12013476,0.00035197,2]
[314216881,1708089039167,-387.96760157,0.000352,2]
[314216882,1708089039178,-2163.54562528,0.000352,2]
[314216883,1708089039187,-191.64795276,0.000352,2]
[314216884,1708089039198,-640.24128028,0.000352,2]
[314216885,1708089039208,-2173.0,0.000352,3]
[314216886,1708089039218,-1876.95340279,0.000352,2]
[314216887,1708089039227,-3212.14062283,0.000352,2]
[314216888,1708089039237,-154.28,0.00035228,2]
[314216889,1708089039246,-182.53120797,0.00035232,2]
[314216890,1708089039255,-68153.0,0.00035288,4]
[314216891,1708089039265,-355.62179127,0.0003529,2]
[314216892,1708089039275,-3359.83375808,0.00035297,2]
[314216893,1708089039285,-1000000.0,0.000353,3]
[314216894,1708089039298,-15795.0,0.000353,3]
[314216895,1708089039308,-3238.670931,0.00035342,2]
[314216896,1708089039317,-1750.559545,0.00035342,2]
[314216897,1708089039326,-4298.093995,0.00035342,2]
[314216898,1708089039335,-2121.151555,0.00035342,2]
[314216899,1708089039345,-1405.695409,0.00035342,2]
[314216900,1708089039354,-65637.258617,0.00035342,2]
[314216901,1708089039366,-7959.249749,0.00035342,2]
[314216902,1708089039376,-1679.91687904,0.00035367,2]
[314216903,1708089039385,-100000.0,0.0003537,2]
[314216904,1708089039395,-500.0,0.00035378,2]
[314216905,1708089039404,-168.13605804,0.00035439,2]
[314216906,1708089039413,-4350.86973023,0.00035439,8]
[314216907,1708089039423,-355.62179127,0.00035529,2]
[314216908,1708089039432,-185011.65,0.00035538,2]
[314216909,1708089039442,-226125.35,0.00035538,2]
[314216910,1708089039451,-1000.0,0.00035539,2]
[314216911,1708089039460,-39488.7513,0.00035539,2]
[314216912,1708089039470,-245000.0,0.00035539,2]
[314216914,1708089039479,-164.61,0.00035561,2]
[314216916,1708089039488,-2139.76866498,0.00035578,7]
[314216918,1708089039497,-1563.58,0.00035585,2]
[314216919,1708089039507,-1621.969199,0.000356,2]
[314216920,1708089039516,-151.52249799,0.00035623,2]
[314216921,1708089039525,-1000.0,0.00035638,5]
[314216922,1708089039535,-588.87956143,0.00035638,5]
[314216923,1708089039545,-44686.35704773,0.00035744,2]
[314216924,1708089039554,-7567.64456378,0.00035744,2]
[314216925,1708089039563,-1305.68,0.00035798,2]
[314216926,1708089039573,-1194.3,0.000358,7]
[314216927,1708089039582,-713.96,0.000358,7]
[314216928,1708089039591,-527.37,0.00035806,2]
[314216929,1708089039601,-666.0,0.00035838,2]
[314216930,1708089039611,-4350.86973014,0.00035842,8]
[314216931,1708089039623,-945.12013476,0.00035862,2]
[314216932,1708089039634,-152.74044294,0.0003591,5]
[314216933,1708089039645,-157.33,0.00035945,2]
[314216934,1708089039654,-3701.338207,0.00036,2]
[314216935,1708089039663,-2000.63948,0.00036,2]
[314216936,1708089039672,-2270.756878,0.00036,2]
[314216937,1708089039681,-4912.107423,0.00036,2]
[314216938,1708089039691,-2424.173206,0.00036,2]
[314216939,1708089039700,-1606.509039,0.00036,2]
[314216940,1708089039709,-75014.009848,0.00036,2]
[314216941,1708089039718,-9096.285428,0.00036,2]
[314216942,1708089039727,-5329.97757811,0.00036,10]
[314216943,1708089039736,-1793.03436548,0.00036018,12]
[314216944,1708089039746,-1884.55955171,0.00036018,12]
[314216945,1708089039755,-966.83955872,0.00036018,12]
[314216946,1708089039765,-371.61369579,0.00036018,12]
[314216947,1708089039774,-3617.81920757,0.00036216,2]
[314216948,1708089039783,-4350.86973014,0.00036245,9]
[314216949,1708089039792,-231.83,0.00036261,2]
[314216950,1708089039802,-151.52249799,0.00036414,2]
[314216951,1708089039811,-945.12013476,0.00036528,2]
[314216952,1708089039820,-4350.86973014,0.00036648,9]
[314216953,1708089039829,-2309.92667656,0.000368,2]
[314216954,1708089039838,-150.0,0.00036986,2]
[314216955,1708089039847,-300.0,0.00036986,7]
[314216956,1708089039857,-150.0,0.00036989,2]
[314216957,1708089039866,-300.0,0.0003699,2]
[314216958,1708089039876,-150.0,0.0003699,2]
[314216959,1708089039885,-494.3200348,0.0003699,5]
[314216960,1708089039894,-2139.76866498,0.00036998,8]
[314216961,1708089039904,-1050.0,0.00037,3]
[314216962,1708089039914,-713.96,0.00037,7]
[314216963,1708089039923,-5009.88,0.00037,20]
[314216964,1708089039932,-4350.86973014,0.00037051,10]
[314216965,1708089039941,-1000.0,0.00037066,2]
[314216966,1708089039951,-1305.68,0.00037075,2]
[314216967,1708089039960,-164.61,0.00037107,2]
[314216968,1708089039969,-158.05,0.0003713,2]
[314216969,1708089039979,-945.12013476,0.00037193,2]
[314216970,1708089039989,-1194.3,0.000372,7]
[314216971,1708089039999,-151.52249799,0.00037206,2]
[314216972,1708089040008,-1563.58,0.00037228,2]
[314216973,1708089040018,-4350.86973014,0.00037454,10]
[314216975,1708089040027,-231.83,0.00037459,2]
[314216976,1708089040037,-2163.54562528,0.00037519,2]
[314216978,1708089040046,-640.24128026,0.00037519,2]
[314216979,1708089040055,-3212.14062283,0.00037519,2]
[314216980,1708089040064,-1876.95340278,0.00037522,2]
[314216981,1708089040074,-150.0,0.00037537,2]
[314216982,1708089040083,-154.28,0.00037616,2]
[314216983,1708089040092,-180.0,0.00037671,2]
[314216984,1708089040103,-44686.35704773,0.00037767,2]
[314216985,1708089040112,-7567.64456378,0.00037767,2]
[314216986,1708089040124,-3617.81920757,0.00037795,2]
[314216987,1708089040134,-4350.86973014,0.00037857,11]
[314216988,1708089040143,-945.12013476,0.00037858,2]
[314216989,1708089040153,-167.07,0.0003789,2]
[314216990,1708089040162,-1679.91687904,0.00037897,2]
[314216991,1708089040172,-250.0,0.000379,2]
[314216992,1708089040182,-619002.814706,0.000379,3]
[314216993,1708089040191,-512.69204957,0.000379,2]
[314216994,1708089040200,-1679.91687904,0.00037997,2]
[314216995,1708089040209,-151.52249799,0.00037998,2]
[314216996,1708089040218,-1000.0,0.00038,18]
[314216997,1708089040228,-546.07516428,0.00038,4]
[314216998,1708089040238,-94908.83830244,0.00038,2]
[314216999,1708089040248,-302742.86354919,0.00038,2]
[314217000,1708089040257,-5424.22352836,0.00038,2]
[314217001,1708089040267,-206.0,0.00038002,2]
[314217002,1708089040277,-527.37,0.0003807,2]
[314217003,1708089040288,-250.0,0.00038174,2]
[314217004,1708089040297,-4350.86973014,0.0003826,11]
[314217005,1708089040306,-713.96,0.000383,7]
[314217006,1708089040315,-1305.68,0.00038352,2]
[314217007,1708089040325,-5000.0,0.00038356,14]
[314217008,1708089040334,-1000.0,0.00038356,14]
[314217009,1708089040344,-150.0,0.00038356,2]
[314217010,1708089040353,-158.97,0.00038356,2]
[314217011,1708089040363,-1112.4,0.00038356,15]
[314217012,1708089040373,-2139.76866498,0.00038417,8]
[314217013,1708089040382,-250.0,0.00038448,2]
[314217014,1708089040391,-561.26,0.000385,3]
[314217015,1708089040401,-152.0,0.0003853,7]
[314217016,1708089040410,-231.83,0.00038657,2]
[314217017,1708089040419,-4350.86973014,0.00038663,12]
[314217018,1708089040428,-152.0,0.00038667,7]
[314217019,1708089040438,-1194.3,0.000387,7]
[314217020,1708089040447,-1187.16853599,0.00038765,2]
[314217021,1708089040457,-500.0,0.0003878,2]
[314217022,1708089040466,-151.52249799,0.0003879,2]
[314217023,1708089040475,-152.0,0.00038804,7]
[314217024,1708089040484,-200.0,0.0003887,7]
[314217025,1708089040494,-1563.58,0.00038872,2]
[314217026,1708089040503,-5039.75063712,0.00038877,2]
[314217027,1708089040512,-150.0,0.00038879,2]
[314217028,1708089040521,-150.0,0.00038879,2]
[314217029,1708089040530,-150.0,0.00038879,2]
[314217030,1708089040540,-150.0,0.00038879,2]
[314217031,1708089040549,-150.0,0.00038879,2]
[314217032,1708089040559,-150.0,0.00038879,2]
[314217033,1708089040568,-150.0,0.00038879,2]
[314217034,1708089040577,-150.0,0.00038879,2]
[314217035,1708089040586,-3397418.77270865,0.0003888,2]
[314217036,1708089040595,-279.63355422,0.000389,4]
[314217037,1708089040605,-200889.21459951,0.000389,3]
[314217038,1708089040613,-1348.81,0.000389,7]
[314217039,1708089040623,-327.69558962,0.00038937,11]
[314217040,1708089040633,-152.0,0.00038941,7]
[314217041,1708089040642,-100000.0,0.00039,19]
[314217042,1708089040651,-4350.86973014,0.00039066,12]
[314217043,1708089040660,-152.0,0.00039078,7]
[314217044,1708089040670,-541.05,0.00039178,2]
[314217045,1708089040679,-152.0,0.00039215,7]
[314217046,1708089040689,-171.01,0.0003926,2]
[314217047,1708089040698,-158.05,0.00039315,2]
[314217048,1708089040707,-152.0,0.00039352,7]
[314217049,1708089040716,-150.0,0.00039366,2]
[314217050,1708089040725,-3617.81920757,0.00039374,2]
[314217051,1708089040734,-206.0,0.00039377,5]
[314217052,1708089040743,-4350.86973014,0.00039469,13]
[314217053,1708089040753,-152.0,0.00039489,7]
[314217054,1708089040762,-17721.08844974,0.000395,20]
[314217055,1708089040771,-713.96,0.000395,7]
[314217056,1708089040780,-151.52249799,0.00039581,5]
[314217057,1708089040789,-5265.52285342,0.00039596,5]
[314217058,1708089040799,-1763.27614267,0.00039596,4]
[314217059,1708089040808,-512.32367358,0.00039596,3]
[314217060,1708089040817,-2539.101128,0.00039596,3]
[314217061,1708089040826,-2732.53147519,0.00039596,4]
[314217062,1708089040835,-277.878225,0.000396,2]
[314217063,1708089040844,-6221.31603615,0.00039614,5]
[314217064,1708089040854,-152.0,0.00039626,7]
[314217065,1708089040864,-1305.68,0.0003963,2]
[314217066,1708089040874,-500.0,0.00039699,31]
[314217067,1708089040883,-500.0,0.00039699,31]
[314217068,1708089040892,-500.0,0.00039699,31]
[314217069,1708089040902,-500.0,0.00039699,31]
[314217070,1708089040911,-500.0,0.00039699,31]
[314217071,1708089040920,-500.0,0.00039699,31]
[314217072,1708089040929,-500.0,0.00039699,31]
[314217073,1708089040939,-500.0,0.00039699,31]
[314217074,1708089040948,-500.0,0.00039699,31]
[314217075,1708089040958,-500.0,0.00039699,31]
[314217076,1708089040967,-299.13086276,0.00039699,31]
[314217077,1708089040976,-500.0,0.00039699,31]
[314217078,1708089040985,-500.0,0.00039699,31]
[314217079,1708089040994,-291.51130847,0.00039699,31]
[314217080,1708089041003,-500.0,0.00039699,31]
[314217081,1708089041013,-500.0,0.00039699,31]
[314217082,1708089041022,-500.0,0.00039699,31]
[314217083,1708089041031,-500.0,0.00039699,31]
[314217084,1708089041040,-500.0,0.00039699,31]
[314217085,1708089041187,-500.0,0.00039699,31]
[314217086,1708089041197,-500.0,0.00039699,31]
[314217087,1708089041205,-500.0,0.00039699,31]
[314217088,1708089041215,-500.0,0.00039699,31]
[314217089,1708089041224,-500.0,0.00039699,31]
[314217090,1708089041234,-454.7904541,0.00039699,31]
[314217091,1708089041243,-500.0,0.00039699,31]
[314217092,1708089041253,-500.0,0.00039699,31]
[314217093,1708089041263,-500.0,0.00039699,31]
[314217094,1708089041271,-500.0,0.00039699,31]
[314217095,1708089041281,-500.0,0.00039699,31]
[314217096,1708089041294,-500.0,0.00039699,31]
[314217097,1708089041303,-500.0,0.00039699,31]
[314217098,1708089041312,-500.0,0.00039699,31]
[314217099,1708089041322,-500.0,0.00039699,31]
[314217100,1708089041331,-500.0,0.00039699,31]
[314217101,1708089041340,-500.0,0.00039699,31]
[314217102,1708089041350,-500.0,0.00039699,31]
[314217103,1708089041363,-500.0,0.00039699,31]
[314217104,1708089041372,-500.0,0.00039699,31]
[314217105,1708089041381,-500.0,0.00039699,31]
[314217106,1708089041390,-319.23152721,0.00039699,31]
[314217107,1708089041399,-500.0,0.00039699,31]
[314217108,1708089041408,-500.0,0.00039699,31]
[314217109,1708089041417,-500.0,0.00039699,31]
[314217110,1708089041425,-500.0,0.00039699,31]
[314217111,1708089041434,-500.0,0.00039699,31]
[314217112,1708089041443,-500.0,0.00039699,31]
[314217113,1708089041452,-500.0,0.00039699,31]
[314217114,1708089041462,-500.0,0.00039699,31]
[314217115,1708089041471,-500.0,0.00039699,31]
[314217116,1708089041480,-500.0,0.00039699,31]
[314217117,1708089041489,-500.0,0.00039699,31]
[314217118,1708089041498,-500.0,0.00039699,31]
[314217119,1708089041507,-500.0,0.00039699,31]
[314217120,1708089041516,-500.0,0.00039699,31]
[314217121,1708089041526,-500.0,0.00039699,31]
[314217122,1708089041535,-500.0,0.00039699,31]
[314217123,1708089041544,-500.0,0.00039699,31]
[314217124,1708089041552,-500.0,0.00039699,31]
[314217125,1708089041561,-500.0,0.00039699,31]
[314217126,1708089041571,-500.0,0.00039699,31]
[314217127,1708089041580,-500.0,0.00039699,31]
[314217128,1708089041589,-642.31143529,0.00039699,31]
[314217129,1708089041598,-500.0,0.00039699,31]
[314217130,1708089041608,-500.0,0.00039699,31]
[314217131,1708089041617,-500.0,0.00039699,31]
[314217132,1708089041627,-500.0,0.00039699,31]
[314217133,1708089041636,-500.0,0.00039699,31]
[314217134,1708089041645,-500.0,0.00039699,31]
[314217135,1708089041654,-500.0,0.00039699,31]
[314217136,1708089041663,-500.0,0.00039699,31]
[314217137,1708089041672,-500.0,0.00039699,31]
[314217138,1708089041682,-500.0,0.00039699,31]
[314217139,1708089041690,-500.0,0.00039699,31]
[314217140,1708089041700,-263.61990348,0.00039699,31]
[314217141,1708089041709,-500.0,0.00039699,31]
[314217142,1708089041718,-500.0,0.00039699,31]
[314217143,1708089041727,-500.0,0.00039699,31]
[314217144,1708089041736,-500.0,0.00039699,31]
[314217145,1708089041745,-500.0,0.00039699,31]
[314217146,1708089041754,-500.0,0.00039699,31]
[314217147,1708089041763,-483.41059268,0.00039699,31]
[314217148,1708089041772,-168.520251,0.00039721,2]
[314217149,1708089041782,-289.672496,0.00039721,2]
[314217150,1708089041791,-180.320062,0.00039721,2]
[314217151,1708089041800,-217.64632,0.00039721,2]
[314217152,1708089041809,-404.448602,0.00039721,2]
[314217153,1708089041819,-200.0,0.00039737,30]
[314217154,1708089041828,-200.0,0.00039737,30]
[314217155,1708089041837,-200.0,0.00039737,30]
[314217156,1708089041846,-200.0,0.00039737,30]
[314217157,1708089041855,-200.0,0.00039737,30]
[314217158,1708089041864,-152.0,0.00039763,7]
[314217159,1708089041874,-44686.35704773,0.00039789,2]
[314217160,1708089041884,-7567.64456378,0.00039789,2]
[314217161,1708089041893,-150.0,0.00039799,2]
[314217162,1708089041902,-150.0,0.00039799,2]
[314217163,1708089041911,-1936764.20279702,0.000398,3]
[314217164,1708089041920,-151.0,0.000398,7]
[314217165,1708089041929,-154.516623,0.000398,7]
[314217166,1708089041938,-151.0,0.000398,7]
[314217167,1708089041947,-153.312168,0.000398,5]
[314217168,1708089041957,-151.0,0.000398,7]
[314217169,1708089041966,-151.0,0.000398,7]
[314217170,1708089041975,-151.0,0.000398,7]
[314217171,1708089041984,-151.0,0.000398,7]
[314217172,1708089041993,-193.441806,0.000398,7]
[314217173,1708089042002,-151.0,0.000398,7]
[314217174,1708089042011,-151.0,0.000398,7]
[314217175,1708089042021,-174.222451,0.000398,7]
[314217176,1708089042031,-151.0,0.000398,7]
[314217177,1708089042040,-151.776715,0.000398,7]
[314217178,1708089042049,-2139.76866498,0.00039837,9]
[314217179,1708089042059,-191.64795275,0.00039837,2]
[314217180,1708089042068,-2163.54562528,0.00039837,2]
[314217181,1708089042077,-640.24128026,0.00039837,2]
[314217182,1708089042087,-3212.14062283,0.00039837,2]
[314217183,1708089042098,-1876.95340278,0.00039843,2]
[314217184,1708089042108,-231.83,0.00039854,2]
[314217185,1708089042118,-205.82600955,0.0003987,7]
[314217186,1708089042129,-4350.86973014,0.00039872,13]
[314217187,1708089042138,-379.84760175,0.00039879,31]
[314217188,1708089042147,-199.55639065,0.00039879,31]
[314217189,1708089042156,-500.0,0.00039879,31]
[314217190,1708089042166,-556.50359901,0.00039879,31]
[314217191,1708089042175,-173.74636087,0.00039879,31]
[314217192,1708089042184,-500.0,0.00039879,31]
[314217193,1708089042193,-220.2738331,0.00039879,31]
[314217194,1708089042203,-500.0,0.00039879,31]
[314217195,1708089042212,-271.99744571,0.00039879,31]
[314217196,1708089042221,-500.0,0.00039879,31]
[314217197,1708089042231,-498.94385221,0.00039879,31]
[314217198,1708089042239,-440.98397945,0.00039879,31]
[314217199,1708089042249,-395.3515855,0.00039879,31]
[314217200,1708089042258,-340.71648919,0.00039879,31]
[314217201,1708089042267,-372.1194636,0.00039879,31]
[314217202,1708089042277,-151.0,0.0003988,7]
[314217203,1708089042288,-1194.3,0.000399,7]
[314217204,1708089042297,-152.0,0.000399,7]
[314217205,1708089042306,-750.43472563,0.00039937,7]
[314217206,1708089042316,-3001.32721262,0.00039937,2]
[314217207,1708089042326,-1001.15216061,0.00039937,2]
[314217208,1708089042336,-247.71451766,0.00039937,15]
[314217209,1708089042346,-292288.37643765,0.00039937,7]
[314217210,1708089042355,-8115.92331117,0.00039937,13]
[314217211,1708089042368,-155.1748445,0.00039937,2]
[314217212,1708089042379,-13616.99510746,0.00039937,30]
[314217213,1708089042388,-70705.07973649,0.00039937,2]
[314217214,1708089042396,-110800.0,0.00039937,10]
[314217215,1708089042406,-2055.16097721,0.00039937,2]
[314217216,1708089042415,-1624.545963,0.00039937,30]
[314217217,1708089042424,-150.0,0.00039937,30]
[314217218,1708089042433,-400.0,0.00039937,5]
[314217219,1708089042443,-1000.0,0.00039997,2]
[314217220,1708089042452,-150.0,0.00039999,2]
[314217221,1708089042462,-100000.0,0.0004,20]
[314217222,1708089042471,-5520.72698138,0.0004,2]
[314217224,1708089042480,-152.49884025,0.0004,120]
[314217226,1708089042489,-130931.76115681,0.0004,7]
[314217227,1708089042498,-8059.67311308,0.0004,30]
[314217228,1708089042507,-10229.07616071,0.0004,7]
[314217229,1708089042516,-169.90704342,0.0004,7]
[314217230,1708089042526,-447.41497558,0.0004,4]
[314217231,1708089042536,-150.0,0.0004,2]
[314217232,1708089042545,-154.28,0.00040004,2]
[314217233,1708089042554,-152.0,0.00040037,7]
[314217234,1708089042564,-152.0,0.00040174,7]
[314217235,1708089042573,-289.672496,0.00040218,2]
[314217236,1708089042583,-404.448602,0.00040218,2]
[314217237,1708089042594,-152.0,0.00040311,7]
[314217238,1708089042604,-527.37,0.00040334,2]
[314217239,1708089042614,-151.52249799,0.00040373,8]
[314217240,1708089042625,-150.0,0.00040375,2]
[314217241,1708089042634,-152.0,0.00040448,7]
[314217242,1708089042644,-1563.58,0.00040516,2]
[314217243,1708089042653,-300.0,0.00040547,2]
[314217244,1708089042662,-154.0,0.00040585,7]
[314217245,1708089042671,-289.672496,0.00040714,2]
[314217246,1708089042680,-404.448602,0.00040714,2]
[314217247,1708089042689,-168.520251,0.00040714,2]
[314217248,1708089042698,-154.0,0.00040722,7]
[314217249,1708089042707,-206.0,0.00040751,10]
[314217250,1708089042716,-167.07,0.00040779,2]
[314217251,1708089042725,-1348.81,0.000408,7]
[314217252,1708089042734,-325.76,0.000408,2]
[314217253,1708089042743,-154.0,0.00040859,7]
[314217254,1708089042752,-150.61036008,0.000409,2]
[314217255,1708089042761,-150.61036008,0.000409,2]
[314217256,1708089042770,-150.61036008,0.000409,2]
[314217257,1708089042780,-150.61036008,0.000409,2]
[314217258,1708089042789,-150.61036008,0.000409,2]
[314217259,1708089042798,-150.61036008,0.000409,2]
[314217260,1708089042807,-150.61036008,0.000409,2]
[314217261,1708089042816,-150.61036008,0.000409,2]
[314217262,1708089042825,-150.61036008,0.000409,2]
[314217263,1708089042835,-3617.81920757,0.00040953,5]
[314217264,1708089042845,-154.0,0.00040996,7]
[314217265,1708089042855,-100000.0,0.00041,21]
[314217266,1708089042864,-170.0,0.00041,14]
[314217267,1708089042873,-4000.0,0.00041,2]
[314217268,1708089042882,-180.261755,0.00041048,2]
[314217269,1708089042891,-231.83,0.00041052,2]
[314217270,1708089042900,-260.60913167,0.00041095,30]
[314217271,1708089042910,-522.23822649,0.00041095,30]
[314217272,1708089042919,-476.32733602,0.00041095,30]
[314217273,1708089042928,-510.18,0.00041095,30]
[314217274,1708089042937,-500.0,0.00041095,30]
[314217275,1708089042946,-450.0,0.00041095,7]
[314217276,1708089042955,-500.0,0.00041095,30]
[314217278,1708089042965,-453.23781326,0.00041095,30]
[314217280,1708089042974,-500.0,0.00041095,30]
[314217282,1708089042983,-500.0,0.00041095,30]
[314217284,1708089042992,-511.79788049,0.00041095,30]
[314217286,1708089043001,-500.0,0.00041095,30]
[314217288,1708089043011,-500.0,0.00041095,30]
[314217290,1708089043020,-500.0,0.00041095,30]
[314217292,1708089043029,-500.0,0.00041095,30]
[314217294,1708089043039,-500.0,0.00041095,30]
[314217295,1708089043048,-500.0,0.00041095,30]
[314217296,1708089043057,-500.0,0.00041095,30]
[314217297,1708089043066,-1148.67,0.00041095,30]
[314217298,1708089043075,-500.0,0.00041095,7]
[314217299,1708089043084,-500.0,0.00041095,30]
[314217300,1708089043094,-500.0,0.00041095,30]
[314217301,1708089043103,-500.0,0.00041095,30]
[314217302,1708089043112,-500.0,0.00041095,30]
[314217303,1708089043121,-562.95982763,0.00041095,30]
[314217304,1708089043132,-500.0,0.00041095,30]
[314217305,1708089043141,-500.0,0.00041095,30]
[314217306,1708089043150,-911.21,0.00041095,30]
[314217307,1708089043159,-234.4213688,0.00041095,30]
[314217308,1708089043168,-776.14,0.00041095,30]
[314217309,1708089043178,-500.0,0.00041095,30]
[314217310,1708089043187,-500.0,0.00041095,30]
[314217311,1708089043196,-732.72,0.00041095,30]
[314217312,1708089043205,-500.0,0.00041095,30]
[314217313,1708089043214,-500.0,0.00041095,30]
[314217314,1708089043222,-500.0,0.00041095,30]
[314217315,1708089043231,-626.27,0.00041095,30]
[314217316,1708089043240,-500.0,0.00041095,30]
[314217317,1708089043249,-500.0,0.00041095,30]
[314217318,1708089043258,-500.0,0.00041095,30]
[314217319,1708089043267,-500.0,0.00041095,30]
[314217320,1708089043279,-500.0,0.00041095,30]
[314217321,1708089043288,-186.74640948,0.00041095,30]
[314217322,1708089043297,-500.0,0.00041095,30]
[314217323,1708089043306,-500.0,0.00041095,30]
[314217324,1708089043315,-500.0,0.00041095,30]
[314217325,1708089043325,-500.0,0.00041095,30]
[314217326,1708089043334,-500.0,0.00041095,30]
[314217327,1708089043343,-560.42589198,0.00041095,30]
[314217328,1708089043352,-500.0,0.00041095,30]
[314217329,1708089043364,-500.0,0.00041095,30]
[314217330,1708089043373,-500.0,0.00041095,30]
[314217331,1708089043382,-500.0,0.00041095,30]
[314217332,1708089043392,-500.0,0.00041095,30]
[314217333,1708089043401,-155.16112371,0.000411,7]
[314217334,1708089043410,-155.16112371,0.000411,7]
[314217335,1708089043419,-155.16112371,0.000411,7]
[314217336,1708089043429,-155.16112371,0.000411,7]
[314217337,1708089043438,-155.16112371,0.000411,7]
[314217338,1708089043447,-155.16112371,0.000411,7]
[314217339,1708089043457,-155.16112371,0.000411,7]
[314217340,1708089043466,-155.16112371,0.000411,7]
[314217341,1708089043475,-155.16112371,0.000411,7]